bitfinex/quotes_ETHUSD_20241204
["timestamp","ask_amount","ask_price","bid_price","bid_amount"]
[1733323144057,6.66,3740.0,3739.9,2.67386]
[1733323144697,6.66,3740.0,3739.9,2.941246]
[1733323145199,6.66,3740.0,3739.9,0.267386]
[1733323145494,6.66,3740.0,3739.3,0.53986417]
[1733323145495,7.77,3740.0,3739.3,0.53986417]
[1733323145699,7.77,3740.0,3739.5,3.0]
[1733323145850,7.77,3740.0,3739.7,3.0]
[1733323146208,7.77,3740.0,3739.4,0.55]
[1733323146691,7.77,3740.0,3739.9,2.67386]
[1733323146896,7.77,3740.0,3739.8,2.67389]
[1733323147057,8.88,3740.0,3739.9,2.67386]
[1733323148195,8.88,3740.0,3739.9,6.22386]
[1733323148196,6.2062,3740.0,3739.9,6.22386]
[1733323148397,1.11,3740.7,3740.3,6.22358]
[1733323148707,1.5794,3742.2,3741.2,5.94053]
[1733323149000,1.5794,3742.2,3742.1,5.67229]
[1733323149424,1.11,3743.0,3742.2,3.55]
[1733323149700,1.11,3743.0,3742.9,5.67172]
[1733323150007,1.11,3743.0,3742.9,6.48932]
[1733323150160,1.11,3743.0,3742.9,5.93932]
[1733323150361,2.22,3743.0,3742.9,5.93932]
[1733323150557,2.22,3743.0,3742.9,6.50240763]
[1733323150965,2.22,3743.0,3742.9,7.05240763]
[1733323151358,2.22,3743.0,3742.9,3.8176]
[1733323151701,2.22,3743.0,3742.2,2.67221]
[1733323151901,0.01892353,3742.9,3742.3,3.54551623]
[1733323152059,0.01892353,3742.9,3742.3,0.54551623]
[1733323152260,3.33,3743.0,3742.9,2.67172]
[1733323152489,3.33,3743.0,3742.9,6.788892]
[1733323153003,3.33,3743.0,3742.9,3.55]
[1733323153209,3.33,3743.0,3742.4,5.67204]
[1733323153361,3.33,3743.0,3742.5,2.672]
[1733323153720,3.33,3743.0,3742.9,2.67172]
[1733323153861,1.76834,3743.0,3742.9,7.19302]
[1733323154607,1.11,3743.6,3742.9,7.19302]
[1733323154608,1.11,3743.6,3743.5,5.67129]
[1733323154758,1.11,3743.6,3743.5,6.22129]
[1733323155360,2.22,3743.6,3743.5,6.22129]
[1733323156473,1.14,3743.8,3743.7,6.22115]
[1733323156671,2.22,3744.3,3744.0,6.22094]
[1733323157055,2.22,3744.1,3744.0,6.22094]
[1733323157365,2.22,3744.1,3744.0,5.67094]
[1733323157904,2.22,3744.1,3743.8,1.5439]
[1733323158117,2.22,3744.1,3743.7,0.54511849]
[1733323158415,2.22,3744.1,3743.8,3.0]
[1733323158574,2.22,3744.1,3743.3,3.55]
[1733323158575,2.22,3744.1,3743.6,3.0]
[1733323158775,4.107,3744.1,3743.2,1.661]
[1733323159075,3.33,3744.1,3744.0,2.67094]
[1733323159284,3.33,3744.1,3744.0,5.67094]
[1733323159498,3.33,3744.1,3744.0,7.24344]
[1733323160072,3.33,3744.1,3744.0,7.79344]
[1733323160491,4.44,3744.1,3744.0,7.79344]
[1733323161113,4.44,3744.1,3744.0,5.67094]
[1733323161594,3.89740856,3744.1,3744.0,5.67094]
[1733323162107,5.00740856,3744.1,3744.0,5.67094]
[1733323162277,5.00740856,3744.1,3744.0,6.22094]
[1733323163691,6.11740856,3744.1,3744.0,6.22094]
[1733323164004,0.55062856,3744.2,3744.1,7.85596]
[1733323164203,8.56e-06,3744.3,3744.2,6.22079]
[1733323165202,2.22,3744.4,3744.3,6.22072]
[1733323165934,0.88467,3744.4,3744.3,6.22072]
[1733323166842,1.76938,3744.5,3744.4,6.22065]
[1733323167301,0.1,3744.9,3744.8,6.22036]
[1733323167502,13.82999701,3745.0,3744.9,6.22029]
[1733323167730,13.82999701,3745.0,3744.9,5.67029]
[1733323167928,13.82999701,3745.0,3744.9,6.22029]
[1733323168240,13.82999701,3745.0,3744.9,5.67029]
[1733323168653,14.93999701,3745.0,3744.9,5.67029]
[1733323168946,14.93999701,3745.0,3744.9,6.22029]
[1733323169127,8.32e-06,3745.0,3744.9,7.80969]
[1733323169611,0.06534893,3745.2,3745.1,2.67015]
[1733323169815,0.06534893,3745.2,3745.1,6.22015]
[1733323170235,1.17534893,3745.2,3745.1,6.22015]
[1733323171238,1.17534893,3745.2,3745.1,8.3135185]
[1733323171807,2.28534893,3745.2,3745.1,3.7623185]
[1733323172011,2.28534893,3745.2,3745.1,0.5421685]
[1733323172207,2.28534893,3745.2,3744.3,1.5469]
[1733323172657,2.28534893,3745.2,3745.1,2.67015]
[1733323172860,2.28534893,3745.2,3744.3,1.5469]
[1733323172861,2.28534893,3745.2,3744.8,2.67035]
[1733323173171,2.28534893,3745.2,3744.9,2.67027]
[1733323173336,2.28534893,3745.2,3744.7,3.20628732]
[1733323173653,3.39534893,3745.2,3744.3,0.42032226]
[1733323173869,3.39534893,3745.2,3744.1,2.67082]
[1733323174008,3.39534893,3745.2,3744.2,0.267082]
[1733323174211,3.39534893,3745.2,3744.4,2.67063]
[1733323174457,3.39534893,3745.2,3744.5,0.54681428]
[1733323174953,3.39534893,3745.2,3744.5,3.54681428]
[1733323174954,1.5761,3745.1,3744.5,3.54681428]
[1733323175154,0.01892353,3745.0,3744.5,0.54681428]
[1733323175448,0.01892353,3745.0,3744.1,2.67085]
[1733323175654,1.5761,3745.1,3744.2,2.67079]
[1733323175655,0.61003725,3744.9,3744.2,2.67079]
[1733323176039,0.61003725,3744.9,3744.0,2.67087]
[1733323176241,1.59502353,3745.1,3743.7,2.67109]
[1733323176242,1.5761,3745.1,3744.3,0.53221946]
[1733323176415,0.01892353,3745.0,3744.3,0.53221946]
[1733323176616,0.01892353,3745.0,3742.8,1.5563]
[1733323176617,1.6663,3744.9,3742.8,1.5563]
[1733323176820,1.6663,3744.7,3743.6,2.67121]
[1733323177026,1.6663,3744.7,3743.4,2.67135]
[1733323177228,0.18744588,3744.6,3743.5,2.67129]
[1733323177527,0.18744588,3744.6,3742.8,1.5563]
[1733323177712,1.5298,3744.5,3743.2,2.67144]
[1733323177913,1.5298,3744.5,3743.5,0.54258182]
[1733323177914,0.01892353,3744.4,3743.5,0.54258182]
[1733323178268,1.66,3744.3,3743.3,2.67142]
[1733323178469,0.16789235,3744.2,3742.7,0.43242476]
[1733323178616,0.16789235,3744.2,3743.4,2.67133]
[1733323178617,0.01892353,3744.1,3743.4,2.67133]
[1733323178815,0.01892353,3744.1,3742.8,0.33868671]
[1733323179165,0.01892353,3744.1,3743.2,2.67149]
[1733323179341,0.01892353,3744.1,3742.5,3.37708842]
[1733323179564,0.01892353,3744.1,3742.6,0.55]
[1733323179749,0.01892353,3744.1,3743.4,3.0]
[1733323180133,1.11,3744.1,3743.4,3.0]
[1733323180332,1.11,3744.1,3743.2,0.52212417]
[1733323180793,1.11,3744.1,3743.6,3.0]
[1733323180983,1.11,3744.1,3744.0,2.67094]
[1733323181280,1.11,3744.1,3743.6,3.3]
[1733323181281,1.12892353,3744.1,3743.6,3.0]
[1733323181478,1.5177,3744.0,3743.2,3.19362417]
[1733323181680,1.5177,3744.0,3743.3,3.0]
[1733323181835,2.23892353,3744.1,3742.5,5.672]
[1733323181836,1.5177,3743.8,3742.5,5.672]
[1733323182036,1.58492353,3743.7,3742.6,0.52645072]
[1733323182274,1.58492353,3743.7,3741.8,2.67245]
[1733323182579,1.566,3743.7,3742.4,1.5137]
[1733323182780,1.566,3743.7,3743.6,2.67122]
[1733323183077,1.566,3743.7,3743.5,2.67127]
[1733323183374,2.676,3743.7,3743.1,3.0]
[1733323183577,2.676,3743.7,3743.6,3.0]
[1733323183890,2.676,3743.7,3743.6,5.67122]
[1733323184035,2.676,3743.7,3743.3,2.67143]
[1733323184441,2.676,3743.7,3743.4,5.67136]
[1733323184665,2.676,3743.7,3743.3,0.54188639]
[1733323184880,2.676,3743.7,3743.4,5.67135]
[1733323185175,3.786,3743.7,3743.3,0.54188639]
[1733323185550,2.22,3744.1,3743.6,6.22122]
[1733323185754,1.11,3745.0,3743.6,6.22122]
[1733323185755,1.11,3745.0,3744.3,5.67072]
[1733323186642,2.22,3744.4,3744.3,5.67072]
[1733323187990,2.22,3744.4,3744.2,3.0]
[1733323188290,2.22,3744.4,3743.4,0.34678343]
[1733323188291,2.22,3744.4,3743.9,3.0]
[1733323188456,2.22,3744.4,3743.5,2.67127]
[1733323188457,3.33,3744.4,3744.3,5.67072]
[1733323190141,4.44,3744.4,3744.3,5.67072]
[1733323191804,5.55,3744.4,3744.3,5.67072]
[1733323192919,5.55,3744.4,3744.2,0.53011224]
[1733323193088,5.55,3744.4,3744.3,2.67072]
[1733323193280,6.66,3744.4,3744.2,0.53011224]
[1733323193479,6.66,3744.4,3744.3,2.67072]
[1733323194327,6.66,3744.4,3743.5,2.03940012]
[1733323194328,6.66,3744.4,3743.5,0.41960012]
[1733323194508,0.82692,3744.3,3743.1,2.67155]
[1733323194686,6.66,3744.4,3742.9,2.67172]
[1733323194887,6.66,3744.4,3743.8,2.67108]
[1733323195100,6.66,3744.4,3743.7,2.67115]
[1733323195101,1.11,3744.3,3743.7,2.67115]
[1733323195304,1.11,3744.3,3744.0,2.67093]
[1733323195709,1.11,3744.3,3744.2,2.67079]
[1733323195889,1.11,3744.3,3744.2,5.67079]
[1733323196087,1.11,3744.3,3744.2,3.0]
[1733323196317,1.11,3744.3,3744.1,5.67083]
[1733323196807,2.22,3744.3,3744.0,3.0]
[1733323197128,2.22,3744.3,3744.2,3.0]
[1733323197420,2.22,3744.3,3743.8,3.0]
[1733323197580,2.22,3744.3,3744.1,3.0]
[1733323198364,2.22,3744.3,3744.2,5.67079]
[1733323198495,3.33,3744.3,3744.2,5.67079]
[1733323198818,3.33,3744.3,3744.2,3.0]
[1733323199020,3.33,3744.3,3744.1,3.0]
[1733323199181,3.33,3744.3,3743.8,0.61968091]
[1733323199625,3.33,3744.3,3744.1,3.0]
[1733323199922,3.33,3744.3,3744.2,5.67079]
[1733323200218,4.44,3744.3,3744.2,5.67079]
[1733323201196,4.44,3744.3,3744.1,0.31981814]
[1733323201537,4.44,3744.3,3744.2,5.67079]
[1733323201833,5.41730065,3744.3,3744.2,5.67079]
[1733323202842,5.43622418,3744.3,3744.1,3.53483104]
[1733323203056,1.5329,3744.2,3744.1,3.53483104]
[1733323203351,6.52730065,3744.3,3744.2,5.67079]
[1733323204253,6.52730065,3744.3,3744.2,6.22079]
[1733323204539,6.52730065,3744.3,3744.1,0.53483104]
[1733323204900,7.63730065,3744.3,3744.1,0.53483104]
[1733323205910,1.58162353,3744.2,3743.0,2.67158]
[1733323206215,1.58162353,3744.2,3742.7,2.93941]
[1733323206216,1.5627,3744.2,3744.0,2.67093]
[1733323206420,1.5627,3744.2,3742.8,0.2676]
[1733323206617,2.6727,3744.2,3744.1,2.67086]
[1733323206870,1.11,3744.2,3744.1,2.67086]
[1733323207159,1.11,3744.2,3744.1,6.22086]
[1733323207925,0.55152662,3744.2,3744.1,6.22086]
[1733323208250,1.37767339,3744.2,3744.1,7.74376]
[1733323208959,1.37767339,3744.2,3744.1,6.22086]
[1733323209142,1.37767339,3744.2,3743.9,0.43340356]
[1733323209456,1.37767339,3744.2,3743.7,0.54415044]
[1733323209677,1.37767339,3744.2,3742.5,2.93957]
[1733323209678,3.1301974,3744.1,3743.1,2.67156]
[1733323209879,3.1301974,3744.1,3742.5,0.2676]
[1733323209880,1.5627,3743.9,3743.2,0.5366406]
[1733323210082,2.69004353,3743.8,3742.5,0.2676]
[1733323210290,1.5627,3743.7,3742.5,0.2676]
[1733323210598,1.7112,3743.5,3742.0,0.43271589]
[1733323210739,1.7112,3743.5,3742.2,0.53204617]
[1733323210740,1.5112,3743.3,3742.2,0.53204617]
[1733323211079,1.5112,3743.3,3741.5,2.6727]
[1733323211080,1.7666,3743.0,3741.5,2.6727]
[1733323211246,1.5666,3742.8,3741.7,2.67256]
[1733323211449,1.5666,3742.8,3742.0,2.67231]
[1733323211753,1.5666,3742.8,3741.9,0.52349838]
[1733323212056,1.6212,3742.7,3741.3,0.02672546]
[1733323212253,1.6212,3742.7,3741.9,3.0]
[1733323212457,1.64012353,3742.7,3741.6,2.67264]
[1733323212662,1.64012353,3742.7,3741.1,0.43804533]
[1733323212663,1.64012353,3742.7,3741.7,3.0]
[1733323212992,0.15666,3742.8,3741.7,3.0]
[1733323212993,0.15666,3742.8,3741.8,2.67248]
[1733323213145,1.11,3742.7,3742.3,2.67209]
[1733323213341,1.11,3742.7,3742.0,3.0]
[1733323213573,1.11,3742.7,3741.9,3.090418]
[1733323213574,0.01892353,3742.6,3742.1,2.67223]
[1733323213736,1.5286,3742.5,3742.3,2.67215]
[1733323213942,1.11,3742.7,3741.9,0.418008]
[1733323213943,1.11,3742.7,3742.6,2.67193]
[1733323214166,1.11,3742.7,3741.8,3.54027341]
[1733323214393,1.11,3742.7,3742.6,2.67193]
[1733323214680,1.11,3742.7,3742.6,5.67193]
[1733323214898,2.22,3742.7,3742.6,6.22193]
[1733323215196,1.11,3743.3,3743.2,5.67151]
[1733323215486,1.11,3743.3,3743.2,6.22151]
[1733323215873,2.48767339,3744.2,3744.1,2.67086]
[1733323216240,2.48767339,3744.2,3743.2,3.22149]
[1733323216241,2.48767339,3744.2,3743.7,3.0]
[1733323216539,2.48767339,3744.2,3744.1,3.0]
[1733323216940,2.48767339,3744.2,3743.3,0.55]
[1733323217200,1.57932353,3744.1,3743.2,2.6715]
[1733323217402,1.57932353,3744.1,3743.1,0.53016452]
[1733323217580,1.5604,3744.1,3743.8,3.0]
[1733323217952,1.5604,3744.1,3743.1,0.53016452]
[1733323217953,1.5604,3744.1,3744.0,2.67094]
[1733323218157,1.5604,3744.1,3743.5,3.0]
[1733323218356,2.6704,3744.1,3743.5,0.3]
[1733323218661,2.6704,3744.1,3743.8,2.67108]
[1733323218863,2.6704,3744.1,3743.9,3.0]
[1733323219099,1.11,3744.1,3744.0,5.67094]
[1733323219995,2.22,3744.1,3744.0,6.22094]
[1733323220192,2.22,3744.1,3744.0,6.86043905]
[1733323220395,1.99173536,3744.1,3744.0,6.86043905]
[1733323221498,1.99173536,3744.1,3744.0,7.39005319]
[1733323221679,3.10173536,3744.1,3744.0,7.39005319]
[1733323223260,4.21173536,3744.1,3744.0,7.39005319]
[1733323224508,3.02710093,3744.4,3744.1,3.55]
[1733323224688,6.11624893,3745.2,3744.9,2.67029]
[1733323224886,6.11624893,3745.2,3744.9,5.67029]
[1733323225090,4.50534893,3745.2,3744.9,6.22029]
[1733323226356,1.88e-06,3745.3,3745.1,5.1944]
[1733323226697,0.035,3745.7,3745.6,6.21979]
[1733323226893,0.035,3745.7,3745.6,6.85928905]
[1733323226894,1e-05,3745.7,3745.6,6.85928905]
[1733323227274,0.1,3746.9,3745.8,0.55]
[1733323227674,0.1,3746.9,3746.8,6.21894]
[1733323228104,0.1,3746.9,3746.8,0.55]
[1733323228105,1.21,3746.9,3746.8,0.55]
[1733323228445,1.21,3746.9,3746.8,5.66894]
[1733323228607,1.21,3746.9,3746.8,3.0]
[1733323228811,1.21,3746.9,3746.6,2.66905]
[1733323228962,1.21,3746.9,3746.8,5.66894]
[1733323229169,1.21,3746.9,3746.8,6.51894]
[1733323229879,2.32,3746.9,3746.8,3.0]
[1733323230092,2.32,3746.9,3746.4,2.66922]
[1733323230093,3.9459,3746.9,3746.4,2.66922]
[1733323230276,3.9459,3746.9,3746.1,0.54646938]
[1733323230277,3.9459,3746.9,3746.5,3.0]
[1733323230584,3.9459,3746.9,3746.0,2.66946]
[1733323230915,3.9459,3746.9,3746.8,5.66894]
[1733323230916,2.32,3746.9,3746.8,5.66894]
[1733323231466,4.9472,3746.9,3746.8,5.66894]
[1733323231701,4.9472,3746.9,3746.1,0.36595009]
[1733323231907,4.9472,3746.9,3746.0,0.54118406]
[1733323231908,3.43,3746.9,3746.8,5.66894]
[1733323233029,3.43,3746.9,3746.4,0.55]
[1733323233225,4.54,3746.9,3746.8,3.0]
[1733323233626,4.54,3746.9,3746.8,5.66894]
[1733323234127,4.54,3746.9,3746.8,3.0]
[1733323234329,4.54,3746.9,3746.6,3.0]
[1733323234489,4.54,3746.9,3746.8,5.66894]
[1733323234695,4.54,3746.9,3746.8,7.76234]
[1733323234890,2.98112,3746.9,3746.8,7.76234]
[1733323236167,2.98112,3746.9,3746.8,8.30620325]
[1733323236453,5.55,3747.4,3747.3,2.66858]
[1733323236946,5.55,3747.4,3747.3,6.752313]
[1733323237953,5.55,3747.4,3747.3,8.356213]
[1733323238263,5.32578,3747.4,3747.3,8.356213]
[1733323238814,5.32578,3747.4,3747.3,7.82248]
[1733323239862,6.43578,3747.4,3747.3,7.82248]
[1733323240415,5.10152,3747.4,3747.3,7.82248]
[1733323240653,2.433,3747.4,3747.3,7.82248]
[1733323240860,1.09874,3747.4,3747.3,7.82248]
[1733323241018,1e-05,3747.5,3747.4,3.55]
[1733323241217,0.72196943,3747.6,3747.5,6.21844]
[1733323242140,0.72196943,3747.6,3747.5,7.28644]
[1733323242564,9.43e-06,3747.6,3747.5,7.28644]
[1733323242919,0.1,3748.9,3748.4,7.1689]
[1733323243352,1e-05,3748.5,3748.4,7.7189]
[1733323243555,0.1,3748.9,3748.8,5.66752]
[1733323243871,0.1,3748.9,3748.8,3.0]
[1733323244167,0.1,3748.9,3748.5,0.55]
[1733323244317,0.1,3748.9,3748.8,3.21752]
[1733323244519,1.21,3748.9,3748.8,6.21752]
[1733323244844,1.21,3748.9,3748.7,2.66759]
[1733323245041,1.21,3748.9,3748.8,5.66752]
[1733323245964,5.27e-06,3749.1,3748.9,3.0]
[1733323246129,9.17e-06,3749.7,3749.6,2.66695]
[1733323246329,56.10001917,3750.0,3749.6,3.21695]
[1733323246528,56.10001917,3750.0,3749.9,6.21673]
[1733323246529,54.76668917,3750.0,3749.9,6.21673]
[1733323246729,54.76668917,3750.0,3749.9,7.78793]
[1733323247457,49.43336917,3750.0,3749.9,7.78793]
[1733323247756,36.26872057,3750.0,3749.9,8.33189832]
[1733323247964,29.730825,3750.0,3749.9,8.7623094]
[1733323248268,15.65742093,3750.0,3749.9,9.12192138]
[1733323248556,0.1,3750.9,3750.5,7.23751]
[1733323248758,0.1,3750.9,3750.8,2.66609]
[1733323249061,1.11,3751.8,3750.9,3.0]
[1733323249221,1.11,3751.8,3751.7,5.66545]
[1733323250130,1.11,3751.8,3751.7,6.21545]
[1733323250858,2.7676,3751.8,3751.4,0.42216944]
[1733323251099,0.41668353,3751.7,3751.4,0.42216944]
[1733323251474,0.39776,3751.7,3751.4,0.42216944]
[1733323251681,0.39776,3751.7,3751.1,3.0]
[1733323251867,0.39776,3751.7,3751.0,3.0]
[1733323252059,0.01892353,3751.6,3750.7,3.0]
[1733323252412,0.42942835,3751.5,3751.1,3.0]
[1733323252698,0.42942835,3751.5,3750.8,3.0]
[1733323252907,1.53942835,3751.5,3750.7,3.0]
[1733323253114,1.11,3751.5,3751.2,2.66578]
[1733323253400,1.11,3751.5,3750.5,3.52033144]
[1733323253715,1.11,3751.5,3750.8,5.66609]
[1733323254024,1.11,3751.5,3750.1,1.6306]
[1733323254025,1.11,3751.5,3751.1,3.0]
[1733323254307,1.11,3751.5,3750.9,3.0]
[1733323254512,2.22,3751.5,3750.4,0.52433438]
[1733323254825,1.55702353,3751.4,3750.4,0.52433438]
[1733323255021,1.55702353,3751.4,3749.7,0.43692749]
[1733323255301,0.01892353,3751.3,3750.1,2.66658]
[1733323255463,1.5381,3751.4,3749.8,0.52236139]
[1733323256081,2.66702353,3751.4,3749.8,0.52236139]
[1733323256278,2.66702353,3751.4,3750.6,2.6662]
[1733323256279,0.53310235,3751.3,3750.6,2.6662]
[1733323256582,2.6481,3751.4,3750.2,0.02666001]
[1733323256779,2.6481,3751.4,3750.9,3.0]
[1733323256999,2.6481,3751.4,3750.4,4.29437]
[1733323257000,1.11,3751.4,3751.3,5.66574]
[1733323257510,1.11,3751.4,3751.0,0.55]
[1733323257723,2.22,3751.4,3750.9,0.54070483]
[1733323258018,2.22,3751.4,3750.8,0.55]
[1733323258222,1.5733,3751.3,3750.4,2.66631]
[1733323258514,0.01892353,3751.2,3750.0,5.0]
[1733323258736,1.6538,3751.1,3750.0,5.0]
[1733323258899,2.22,3751.4,3751.3,2.66574]
[1733323259336,3.33,3751.4,3751.3,2.66574]
[1733323259517,3.33,3751.4,3750.2,5.33304]
[1733323259723,3.33,3751.4,3750.9,2.66598]
[1733323260036,3.33,3751.4,3750.1,4.6495]
[1733323260342,1.6378,3751.3,3750.0,5.0]
[1733323260838,1.6378,3751.3,3751.0,2.66592]
[1733323261139,1.11,3751.3,3751.2,2.66581]
[1733323261522,1.11,3751.3,3750.1,1.5293]
[1733323261523,1.9319,3751.3,3750.1,1.5293]
[1733323261693,1.9319,3751.3,3750.2,2.66652]
[1733323261899,1.11,3751.3,3751.2,5.66581]
[1733323262444,1.11,3751.3,3751.2,6.21581]
[1733323262651,2.22,3751.3,3751.2,6.21581]
[1733323263142,2.22,3751.3,3751.2,5.66581]
[1733323263501,2.22,3751.3,3751.2,6.21581]
[1733323264401,3.33,3751.3,3751.2,5.66581]
[1733323264616,3.33,3751.3,3751.1,3.0]
[1733323264944,3.33,3751.3,3750.3,1.5212]
[1733323264945,3.33,3751.3,3750.9,2.66596]
[1733323265243,3.33,3751.3,3750.9,3.0]
[1733323265399,3.33,3751.3,3750.8,3.0]
[1733323265736,4.36842,3751.3,3750.5,0.52901559]
[1733323266050,5.47842,3751.3,3750.6,3.0]
[1733323266277,5.47842,3751.3,3750.3,5.66643]
[1733323266568,1.64642353,3751.2,3750.0,7.66662]
[1733323266780,1.6275,3750.7,3750.0,5.0]
[1733323266977,0.44828653,3750.6,3750.0,5.0]
[1733323267126,1.6275,3750.5,3750.0,5.0]
[1733323267540,2.7375,3750.5,3750.0,5.0]
[1733323268373,0.01892353,3750.4,3750.0,5.0]
[1733323268557,2.7375,3750.5,3750.0,5.0]
[1733323269371,3.8475,3750.5,3750.0,5.0]
[1733323269581,1.5475,3750.3,3750.0,5.0]
[1733323270035,0.01892353,3750.2,3750.0,5.0]
[1733323270346,1.79548207,3750.1,3750.0,5.0]
[1733323270553,2.22,3750.5,3750.0,5.0]
[1733323270782,2.22,3750.5,3750.4,2.66638]
[1733323270949,3.33,3750.5,3750.4,2.66638]
[1733323271149,3.33,3750.5,3750.4,3.199677]
[1733323271537,3.33,3750.5,3750.4,6.199677]
[1733323271792,3.33,3750.5,3750.4,3.0]
[1733323272383,3.33,3750.5,3750.1,3.0]
[1733323272595,3.33,3750.5,3750.0,5.0]
[1733323272596,1.55712353,3750.4,3750.0,5.0]
[1733323273101,1.5382,3750.4,3750.0,5.0]
[1733323273684,2.66659,3750.1,3750.0,5.0]
[1733323273975,4.73628435,3750.1,3750.0,5.0]
[1733323274177,2.06969435,3750.1,3750.0,5.0]
[1733323274486,2.6245,3750.1,3750.0,5.0]
[1733323274789,5.29109,3750.1,3750.0,5.0]
[1733323274989,1.6109,3749.5,3747.5,1.6018]
[1733323275196,1.6109,3749.5,3747.7,2.6683]
[1733323275486,1.6109,3749.5,3748.8,2.66746]
[1733323275658,1.6109,3749.5,3749.3,2.66716]
[1733323275989,1.6109,3749.5,3749.0,2.66731]
[1733323276282,2.7209,3749.5,3748.9,2.934186]
[1733323276493,2.7209,3749.5,3748.9,0.266746]
[1733323276638,2.7209,3749.5,3748.5,3.0]
[1733323276842,2.7209,3749.5,3748.8,3.0]
[1733323277059,1.11,3749.5,3749.4,5.66709]
[1733323277747,2.22,3749.5,3748.4,1.6137]
[1733323278065,2.22,3749.5,3749.2,2.66723]
[1733323278621,2.22,3749.5,3749.2,2.66716]
[1733323279498,3.33,3749.5,3749.0,3.0]
[1733323279662,3.33,3749.5,3749.4,5.66709]
[1733323280049,0.29876125,3749.5,3749.4,8.09909]
[1733323280249,1.11,3750.1,3750.0,5.66666]
[1733323280651,1.11,3750.1,3750.0,7.28106]
[1733323280854,4.44,3750.5,3750.4,5.66638]
[1733323282658,5.55,3750.5,3750.4,5.66638]
[1733323284201,6.64758809,3750.5,3750.4,5.66638]
[1733323285944,7.75758809,3750.5,3750.4,5.66638]
[1733323286240,7.75758809,3750.5,3750.4,7.31506808]
[1733323286742,2.22,3751.5,3751.2,5.66581]
[1733323287651,5.55,3751.3,3751.2,5.66581]
[1733323287946,7.0802,3751.3,3750.6,2.66624]
[1733323288247,8.34322,3751.3,3750.2,0.53338241]
[1733323288450,8.34322,3751.3,3750.3,2.66643]
[1733323288703,8.34322,3751.3,3749.9,1.6409]
[1733323288704,0.01892353,3751.2,3749.9,2.06401281]
[1733323288858,8.34322,3751.3,3750.5,2.6663]
[1733323289016,0.01892353,3751.2,3750.5,2.6663]
[1733323289215,1.41013788,3751.2,3749.8,0.5426247]
[1733323289548,1.39121435,3751.2,3750.2,2.66652]
[1733323289857,1.39121435,3751.2,3749.5,1.6645]
[1733323290059,1.39121435,3751.2,3749.7,0.54001157]
[1733323290262,1.41013788,3751.2,3749.9,2.66669]
[1733323290410,1.5914,3751.0,3749.6,2.66694]
[1733323290612,1.5914,3750.6,3749.4,0.54475786]
[1733323290912,1.5914,3750.6,3748.6,1.5396]
[1733323290913,1.61032353,3750.5,3749.2,2.66723]
[1733323291115,1.61032353,3750.5,3748.6,0.42232805]
[1733323291429,1.61032353,3750.5,3748.5,0.52479719]
[1733323291628,1.5224,3750.3,3748.9,2.66742]
[1733323291827,1.5224,3750.1,3748.1,0.42155574]
[1733323292061,0.36103235,3750.4,3747.9,1.91461198]
[1733323292062,1.5224,3749.9,3748.3,0.52975716]
[1733323292219,0.01892353,3749.8,3748.9,2.66744]
[1733323292446,0.01892353,3749.8,3749.0,2.66733]
[1733323292636,2.6324,3749.9,3749.0,0.266733]
[1733323292840,2.6324,3749.9,3748.6,2.66766]
[1733323293190,1.11,3749.9,3749.4,2.66704]
[1733323293333,1.11,3749.9,3749.4,0.55]
[1733323293532,1.11,3749.9,3749.5,2.66701]
[1733323293734,1.11,3749.9,3749.6,2.66694]
[1733323293987,1.11,3749.9,3749.6,0.321694]
[1733323294188,2.22,3749.9,3749.4,3.0]
[1733323294484,1.5231,3749.7,3748.9,2.66744]
[1733323294641,1.5231,3749.7,3749.1,2.66729]
[1733323294845,2.22,3749.9,3748.7,2.66759]
[1733323295068,2.22,3749.9,3749.6,2.66694]
[1733323295233,2.22,3749.9,3749.7,0.266694]
[1733323295676,2.22,3749.9,3749.7,3.0]
[1733323295881,3.33,3749.9,3749.8,2.6668]
[1733323296137,3.33,3749.9,3749.8,6.2168]
[1733323296359,3.33,3751.4,3749.8,6.2168]
[1733323296360,8.2115,3751.3,3749.8,6.2168]
[1733323296617,8.2115,3751.3,3750.9,3.0]
[1733323296983,8.2115,3751.3,3750.9,5.66602]
[1733323297511,2.22,3751.0,3750.9,3.0]
[1733323297730,1.663,3750.9,3749.2,1.504]
[1733323297881,1.663,3750.9,3749.4,0.55]
[1733323298084,1.663,3750.9,3750.4,2.66636]
[1733323298334,1.663,3750.9,3750.5,2.66629]
[1733323298480,1.663,3750.9,3750.5,0.266629]
[1733323298845,6.66,3751.3,3750.9,2.66602]
[1733323298979,2.22,3751.8,3751.5,0.55]
[1733323299310,2.22,3751.8,3751.7,6.21545]
[1733323299514,1.17857795,3751.8,3751.7,6.21545]
[1733323300341,1.17857795,3751.8,3751.7,7.83985]
[1733323300843,1.11000795,3751.8,3751.7,7.83985]
[1733323302047,1.11000795,3751.8,3751.7,6.21545]
[1733323302392,1.11000795,3751.8,3750.8,2.66608]
[1733323302590,1.11000795,3751.8,3751.7,2.66545]
[1733323302591,2.22000795,3751.8,3751.7,2.66545]
[1733323303096,2.22000795,3751.8,3751.1,2.66583]
[1733323303296,2.22000795,3751.8,3751.5,2.66559]